Workbook

Sheet Support (hidden)
B1: Pasirinkimas
A3: PVM moketojas | B3: PVM moketojas - PVM neapmokestinama veikla, ne rangos darbai | C3: Ne PVM moketojas - rangos darbai | D3: Ne PVM moketojas - PVM neapmokestinama veikla, ne rangos darbai | F3: PVM moketojasTAIP | G3: OK | H3: PVM moketojas | I3: 1.2 | J3: 1.21
A4: NE | B4: NE | C4: NE | D4: NE | F4: PVM moketojasNE | G4: OK | H4: PVM moketojas - PVM neapmokestinama veikla, ne rangos darbai | I4: 1.2 | J4: 1.21
A5: TAIP | F5: Ne PVM moketojas - rangos darbaiNE | G5: OK | H5: Ne PVM moketojas - rangos darbai | I5: =1.242 -> 1.242 | J5: 1
F6: Ne PVM moketojas - rangos darbaiTAIP | G6: NE | H6: Ne PVM moketojas - PVM neapmokestinama veikla, ne rangos darbai | I6: 1.5 | J6: 1
A7: TAIP | B7: NE | C7: Minimali kaina kv.m., EUR | D7: 0.5 | F7: PVM moketojas - PVM neapmokestinama veikla, ne rangos darbaiNE | G7: OK
A8: 12 men. (1m.) | B8: Be issimokejimo termino | C8: Minimali nemokumo riba | D8: 0.05 | F8: PVM moketojas - PVM neapmokestinama veikla, ne rangos darbaiTAIP | G8: NE
A9: 18 men. (1.5m.) | F9: Ne PVM moketojas - PVM neapmokestinama veikla, ne rangos darbaiNE | G9: OK
A10: 24 men. (2m.) | F10: Ne PVM moketojas - PVM neapmokestinama veikla, ne rangos darbaiTAIP | G10: NE
A11: 30 men. (2.5m.)
A12: 36 men. (3m.)
A13: 42 men. (3.5m.)
A14: 48 men. (4m.) | O14: Pirkimai | P14: CS2021P
O15: Bendra | P15: CSSE48
B16: 1-5 | D16: 6 | F16: 7 | K16: 8
A17: issimokejimo terminas | B17: Mokestis, % | C17: Min. mokestis, EUR | D17: Mokestis, % | E17: Min. mokestis, EUR | F17: Mokestis, % | G17: Faktoringo kaina | H17: Garantija | I17: Reiksmes | J17: Menesiai | K17: Nemokumo koef
A18: Be issimokejimo termino | B18: 0.2 | C18: 0 | D18: 0 | E18: 0 | F18: 0 | G18: 0 | H18: 0.04 | I18: NE | J18: 1 | K18: 0
A19: 12 men. (1m.) | B19: 0.13 | C19: 300 | D19: 0.02 | E19: 100 | F19: 0.05 | G19: 0.07631649127 | H19: 0.04 | I19: TAIP | J19: 12 | K19: 0.5
A20: 18 men. (1.5m.) | B20: 0.121 | C20: 300 | D20: 0.02 | E20: 100 | F20: 0.071 | G20: 0.1027003479 | H20: 0.04 | I20: TAIP | J20: 18 | K20: 0.5
A21: 24 men. (2m.) | B21: 0.113 | C21: 300 | D21: 0.02 | E21: 100 | F21: 0.09 | G21: 0.1230503713 | H21: 0.04 | I21: TAIP | J21: 24 | K21: 0.5
A22: 30 men. (2.5m.) | B22: 0.104 | C22: 300 | D22: 0.02 | E22: 100 | F22: 0.108 | G22: 0.1371340651 | H22: 0.04 | I22: TAIP | J22: 30 | K22: 0.5
A23: 36 men. (3m.) | B23: 0.096 | C23: 300 | D23: 0.02 | E23: 100 | F23: 0.123 | G23: 0.1447903758 | H23: 0.04 | I23: TAIP | J23: 36 | K23: 0.5
A24: 42 men. (3.5m.) | B24: 0.088 | C24: 300 | D24: 0.02 | E24: 100 | F24: 0.138 | G24: 0.169469736 | H24: 0.04 | I24: TAIP | J24: 42 | K24: 0.5
A25: 48 men. (4m.) | B25: 0.08 | C25: 300 | D25: 0.02 | E25: 100 | F25: 0.15 | G25: 0.1944820339 | H25: 0.04 | I25: TAIP | J25: 48 | K25: 0.5
B28: Bendras
A30: Finansuotojas finansuoja rangovo saskaita
A32: Tarpine rangovo saskaita (skirta faktoringo kainos apskaičiavimui) | B32: Suma | C32: PVM | D32: Suma su PVM
B33: =IF(OR(Paraiska!B11="PVM moketojas",Paraiska!B11="PVM moketojas - PVM neapmokestinama veikla, ne rangos darbai")=TRUE,Paraiska!B10+Paraiska!E10+B45,Paraiska!B10+Paraiska!E10+D45) -> 37500 | C33: =IF(OR(Paraiska!B11="PVM moketojas",Paraiska!B11="PVM moketojas - PVM neapmokestinama veikla, ne rangos darbai")=TRUE,B33*0.21,0) -> 7875 | D33: =SUM(B33,C33) -> 45375
B36: Suma | C36: PVM | D36: Suma su PVM
A37: 1 - Techninis konsultavimas del optimalaus darbu įgyvendinimo | B37: =ROUND(MAX(VLOOKUP(Paraiska!B35,A18:C25,2,0)*(Paraiska!B10+Paraiska!E10),VLOOKUP(Paraiska!B35,A18:C25,3,0)),2) -> 2400 | C37: =ROUND(B37*0.21,2) -> 504 | D37: =B37+C37 -> 2904
A38: 2 - Projektines uzduoties parengimas, siekiant Rangovui tinkamai pateikti pirkimo pasiulyma
A39: 3 - Rangovu atliktu darbu garantiniu įsipareigojimu organizavimas
A40: 4 - Rangovu sertifikavimas (patikimu tiekeju sarasas)
A41: 5 - Marketingines, reklamines (patikimu rangovu saraso viesinimo) paslaugos
A42: 6 - Rangovu finansinio faktoringo organizavimas | B42: =ROUND(MAX(VLOOKUP(Paraiska!B35,A18:E25,4,0)*(Paraiska!B10+Paraiska!E10),VLOOKUP(Paraiska!B35,A18:E25,5,0)),2) -> 600 | C42: =ROUND(B42*0.21,2) -> 126 | D42: =B42+C42 -> 726
A43: 7 - Garantijos kastai | B43: =ROUND(VLOOKUP(Paraiska!B35,A18:F25,6,0)*(Paraiska!B10+Paraiska!E10),2) -> 4500 | C43: =ROUND(B43*0.21,2) -> 945 | D43: =B43+C43 -> 5445
A44: 8 - Kliento nemokumas | B44: =ROUND(IF(Paraiska!B36<D8,0,Paraiska!B36*VLOOKUP(Paraiska!B35,Support!A18:K25,11,0))*(Paraiska!B10+Paraiska!E10),2) -> 0 | C44: =ROUND(B44*0.21,2) -> 0 | D44: =B44+C44 -> 0
A45: Daugiabučio administratoriaus israsoma saskaita (Rangovui) | B45: =SUM(B37:B44) -> 7500 | C45: =SUM(C37:C44) -> 1575 | D45: 9075
B48: #1 Pasirinkimas
A50: Finansuotojas finansuoja rangovo saskaita
A52: Tarpine rangovo saskaita (skirta faktoringo kainos apskaičiavimui) | B52: Suma | C52: PVM | D52: Suma su PVM
B53: =IF(OR(Paraiska!B11="PVM moketojas",Paraiska!B11="PVM moketojas - PVM neapmokestinama veikla, ne rangos darbai")=TRUE,Paraiska!B10+B65,Paraiska!B10+D65) -> 37500 | C53: =IF(OR(Paraiska!B11="PVM moketojas",Paraiska!B11="PVM moketojas - PVM neapmokestinama veikla, ne rangos darbai")=TRUE,B53*0.21,0) -> 7875 | D53: =SUM(B53,C53) -> 45375
B56: Suma | C56: PVM | D56: Suma su PVM
A57: 1 - Techninis konsultavimas del optimalaus darbu įgyvendinimo | B57: =IFERROR(B37/SUM(Paraiska!B10:G10)*Paraiska!B10,0) -> 2400 | C57: =ROUND(B57*0.21,2) -> 504 | D57: =B57+C57 -> 2904
A58: 2 - Projektines uzduoties parengimas, siekiant Rangovui tinkamai pateikti pirkimo pasiulyma
A59: 3 - Rangovu atliktu darbu garantiniu įsipareigojimu organizavimas
A60: 4 - Rangovu sertifikavimas (patikimu tiekeju sarasas)
A61: 5 - Marketingines, reklamines (patikimu rangovu saraso viesinimo) paslaugos
A62: 6 - Rangovu finansinio faktoringo organizavimas | B62: =IFERROR(B42/SUM(Paraiska!B10:G10)*Paraiska!B10,0) -> 600 | C62: =ROUND(B62*0.21,2) -> 126 | D62: =B62+C62 -> 726
A63: 7 - Garantijos kastai | B63: =IFERROR(B43/SUM(Paraiska!B10:G10)*Paraiska!B10,0) -> 4500 | C63: =ROUND(B63*0.21,2) -> 945 | D63: =B63+C63 -> 5445
A64: 8 - Kliento nemokumas | B64: =IFERROR(B44/SUM(Paraiska!B10:G10)*Paraiska!B10,0) -> 0 | C64: =ROUND(B64*0.21,2) -> 0 | D64: =B64+C64 -> 0
A65: Daugiabučio administratoriaus israsoma saskaita (Rangovui) | B65: =SUM(B57:B64) -> 7500 | C65: =SUM(C57:C64) -> 1575 | D65: 9075
B68: #2 Pasirinkimas
A70: Finansuotojas finansuoja rangovo saskaita
A72: Tarpine rangovo saskaita (skirta faktoringo kainos apskaičiavimui) | B72: Suma | C72: PVM | D72: Suma su PVM
B73: =IF(OR(Paraiska!B11="PVM moketojas",Paraiska!B11="PVM moketojas - PVM neapmokestinama veikla, ne rangos darbai")=TRUE,Paraiska!E10+B86,Paraiska!E10+D86) -> 0 | C73: =IF(OR(Paraiska!B11="PVM moketojas",Paraiska!B11="PVM moketojas - PVM neapmokestinama veikla, ne rangos darbai")=TRUE,B73*0.21,0) -> 0 | D73: =SUM(B73,C73) -> 0
B77: Suma | C77: PVM | D77: Suma su PVM
A78: 1 - Techninis konsultavimas del optimalaus darbu įgyvendinimo | B78: =B37-B57 -> 0 | C78: =C37-C57 -> 0 | D78: =B78+C78 -> 0
A79: 2 - Projektines uzduoties parengimas, siekiant Rangovui tinkamai pateikti pirkimo pasiulyma | D79: 0
A80: 3 - Rangovu atliktu darbu garantiniu įsipareigojimu organizavimas | D80: 0
A81: 4 - Rangovu sertifikavimas (patikimu tiekeju sarasas) | D81: 0
A82: 5 - Marketingines, reklamines (patikimu rangovu saraso viesinimo) paslaugos | D82: 0
A83: 6 - Rangovu finansinio faktoringo organizavimas | B83: =B42-B62 -> 0 | C83: 0 | D83: =B83+C83 -> 0
A84: 7 - Garantijos kastai | B84: 0 | C84: 0 | D84: =B84+C84 -> 0
A85: 8 - Kliento nemokumas | B85: 0 | C85: 0 | D85: =B85+C85 -> 0
A86: Daugiabučio administratoriaus israsoma saskaita (Rangovui) | B86: =SUM(B78:B84) -> 0 | C86: =SUM(C78:C84) -> 0 | D86: =SUM(D78:D84) -> 0
A90: Įmoniu sarasas
A91: UAB „Mano Bustas Alytus“
A92: UAB „Mano Bustas Aukstaitija“
A93: UAB „Mano Bustas Dainava“
A94: UAB „Mano Bustas Baltija“
A95: UAB „Mano Bustas Sostine“
A96: UAB „Mano Bustas NPC“
A97: UAB „Mano Bustas Vilnius“
A98: UAB „Mano Bustas Radviliskis“
A99: UAB „Mano Bustas Siauliai“
A100: UAB „Mano Bustas Vakarai“
A101: UAB „Mano Bustas Klaipeda“
A102: UAB „Mano Bustas Neris“
A103: UAB „Mano Bustas Kaunas“

Sheet Paraiska
B1: Pildomi laukai
A4: PIRKIMAI | B4: PILDOMA INDORMACIJA | I4: PILDOMA INDORMACIJA | V4: X
A6: Įveskite skirtingų atliekamų darbų skaičių (skirtingų mišrių PVM arba garantijos taikymas) | B6: 1
B8: RANGOVO INFORMACIJA | I8: RANGOVO INFORMACIJA
E9: Darbas #2
A10: Rangovo gaunamos pajamos (be administratoriaus ir faktoringo kaštų), EUR be PVM | B10: 30000 | I10: =SUM(B10:G10) -> 30000
A11: Darbų vykdytojo PVM mokėtojo statusas | B11: PVM moketojas | I11: =B11 -> PVM moketojas
A12: Ar taikomas atvirkštinis PVM? Pasirinkite reikšmę NE arba TAIP (galima tik kai rangovas yra PVM mokėtojas) | B12: TAIP | C12: =OFFSET(Support!$A$3,1,MATCH($B$11,Support!$A$3:'Support'!$D$3,0)-1,1,1) -> NE | D12: =OFFSET(Support!$A$3,1,MATCH($B$11,Support!$A$3:'Support'!$D$3,0)-1,1,1) -> NE | E12: =OFFSET(Support!$A$3,1,MATCH($B$11,Support!$A$3:'Support'!$D$3,0)-1,1,1) -> NE | F12: =OFFSET(Support!$A$3,1,MATCH($B$11,Support!$A$3:'Support'!$D$3,0)-1,1,1) -> NE | G12: =OFFSET(Support!$A$3,1,MATCH($B$11,Support!$A$3:'Support'!$D$3,0)-1,1,1) -> NE | I12: =IF(OR(B12="TAIP",E12="TAIP")=TRUE,"TAIP","NE") -> TAIP
A13: Rangovo tipas | B13: Ne PortalPRO
B14: =OFFSET(Support!$A$3,1,MATCH($B$11,Support!$A$3:'Support'!$D$3,0)-1,1,1) -> NE | C14: =OFFSET(Support!$A$7,1,MATCH($B$34,Support!$A$7:'Support'!$B$7,0)-1,1,1) -> 12 men. (1m.) | D14: =Support!$D$7 -> 0.5
B15: =IF(VLOOKUP(B11&B12,Support!F3:'Support'!G10,2,FALSE)="OK","","KLAIDA: Atvirkštinį PVM galima rinktis tik tuo atveju, jei rangovas yra PVM mokėtojas") -> 
B16: =IF(VLOOKUP(B11&E12,Support!F3:'Support'!G10,2,FALSE)="OK","","KLAIDA: Atvirkštinį PVM galima rinktis tik tuo atveju, jei rangovas yra PVM mokėtojas") -> 
B20: UZSAKOVO INFORMACIJA | I20: UŽSAKOVO INFORMACIJA
A21: Administratoriaus pavadinimas | B21: UAB „Mano Bustas Siauliai“ | I21: =IF(B21=0,"",B21) -> UAB „Mano Bustas Siauliai“
A22: Iniciatorius | B22: Asta Daugėlė | I22: =IF(B22=0,"",B22) -> Asta Daugėlė
A23: Unikalus pranešimo numeris | B23: V21-1083579
A24: Namo valdymo forma | B24: Namo administratorius | I24: =IF(B24=0,"",B24) -> Namo administratorius
A25: Namo adresas | B25: Gegužių 80, Šiauliai | I25: =IF(B25=0,"",B25) -> Gegužių 80, Šiauliai
A26: Darbо tipas | B26: namo blokų padengimas termokeramika | I26: =CONCATENATE(B26,,";"," ",E26) -> namo blokų padengimas termokeramika ;
A27: Rezervas
A28: Rezervas
A29: Naudingas namo/laiptinės plotas, kv. m | B29: 2322.88 | I29: =B29 -> 2322.88
A30: Namo/laiptinės butų skaičius, vnt. | B30: 35 | I30: =IF(B30=0,"",B30) -> 35
A31: Panaudojama kaupiamųjų lėšų suma | B31: 0 | I31: =IF(B31=0,"",B31) -> 
A32: Panaudojamos kitos iš anksto sumokamos sumos, Eur | B32: 0 | I32: =IF(B32=0,"",B32) -> 
A33: Minimali darbų kaina vienam kv.m. taikant išsimokėjimą | B33: 1.5 | I33: 1.5
A34: Ar darbams suteikiamas išsimokėjimo terminas? | B34: =IFERROR(IF((B10+E10-B31-B32)/B29>(B33/VLOOKUP(B11,Support!$H$3:'Support'!$I$6,2,0)/VLOOKUP(B11,Support!$H$3:'Support'!$J$6,3,0)),"TAIP","NE"),"NE") -> TAIP | I34: TAIP
A35: Išsimokėjimo terminas (paskaičiuojamas automatiškai) | B35: 48 men. (4m.) | C35: =OFFSET(Support!$A$7,1,MATCH($B$34,Support!$A$7:'Support'!$B$7,0)-1,1,1) -> 12 men. (1m.) | D35: =OFFSET(Support!$A$7,1,MATCH($B$34,Support!$A$7:'Support'!$B$7,0)-1,1,1) -> 12 men. (1m.) | E35: =OFFSET(Support!$A$7,1,MATCH($B$34,Support!$A$7:'Support'!$B$7,0)-1,1,1) -> 12 men. (1m.) | F35: =OFFSET(Support!$A$7,1,MATCH($B$34,Support!$A$7:'Support'!$B$7,0)-1,1,1) -> 12 men. (1m.) | G35: =OFFSET(Support!$A$7,1,MATCH($B$34,Support!$A$7:'Support'!$B$7,0)-1,1,1) -> 12 men. (1m.) | I35: 48 men. (4m.)
A36: Objekto nemokumas, % | B36: 0.013 | I36: 0.013
A37: Rezervas
A38: Rezervas
A39: Faktoringo kaina, % | B39: =VLOOKUP(B35,Support!A18:'Support'!G25,7,0) -> 0.1944820339 | I39: =B39 -> 0.1944820339
A40: Faktoringo kaina + PVM, EUR | B40: =SUM(B72:G72) -> 10677.79 | I40: =B40 -> 10677.79
A41: Rezervas
A42: Ar darbams taikomas garantinis laikotarpis? | B42: TAIP | E42: TAIP | I42: =IF(OR(B42="TAIP",E42="TAIP")=TRUE,"TAIP","NE") -> TAIP
A43: Garantijos suma, sulaikoma rangovui | B43: =ROUND(IF(B42="TAIP",B58*VLOOKUP(B35,Support!A18:'Support'!H25,8,0),0),2) -> 1852.98 | E43: =ROUND(IF(E42="TAIP",E58*VLOOKUP(B35,Support!A18:'Support'!H25,8,0),0),2) -> 0 | I43: =SUM(B43:G43) -> 1852.98
B45: =IF(B34="NE","Negalimas išsimokėjimo terminas, kadangi darbų vertė neviršija 1.5 EUR vienam kv. m. Klientams už visus darbus bus išstatoma viena sąskaita","Išsimokėjimo terminas paskaičiuojamas automatiškai, optimizuojant galutinę kainą") -> Išsimokėjimo terminas paskaičiuojamas automatiškai, optimizuojant galutinę kainą
B46: =IF(VLOOKUP(B35,Support!A18:'Support'!I25,9,0)=B34,"","KLAIDA: NETINKAMA REIKŠMĖ. Patikslinkite išsimokėjimo terminą") -> 
B47: =IF(OR(B15="KLAIDA: Atvirkštinį PVM galima rinktis tik tuo atveju, jei rangovas yra PVM mokėtojas",B16="KLAIDA: Atvirkštinį PVM galima rinktis tik tuo atveju, jei rangovas yra PVM mokėtojas",B46="KLAIDA: NETINKAMA REIKŠMĖ. Patikslinkite išsimokėjimo terminą")=TRUE,"FORMOJE YRA KLAIDŲ, PRAŠOME PATIKRINTI ĮVESTAS REIKŠMES","") -> 
B48: =IF(B36<10%,"","Darbų finansavimas išsimokėtinai nėra galimas. Nemokumas didesnis kaip 10 proc.") -> 
B55: REZULTATAS | I55: REZULTATAS
B57: RANGOVO ISRASOMA SASKAITA (UZSAKOVUI) | I57: RANGOVO IŠRAŠOMA SĄSKAITA (UŽSAKOVUI)
A58: Suma be PVM | B58: =IF(B47="FORMOJE YRA KLAIDŲ, PRAŠOME PATIKRINTI ĮVESTAS REIKŠMES",0,IF(OR(B11="PVM moketojas",B11="PVM moketojas - PVM neapmokestinama veikla, ne rangos darbai")=TRUE,B10+Support!B65+B70,B10+Support!D65+B72)) -> 46324.62 | E58: =IF(B47="FORMOJE YRA KLAIDŲ, PRAŠOME PATIKRINTI ĮVESTAS REIKŠMES",0,IF(OR(B11="PVM moketojas",B11="PVM moketojas - PVM neapmokestinama veikla, ne rangos darbai")=TRUE,E10+Support!B86+E70,E10+Support!D86+E72)) -> 0 | I58: =SUM(B58:G58) -> 46324.62
A59: PVM | B59: =ROUND(IF(B11="PVM moketojas",B58*0.21,0),2) -> 9728.17 | E59: =ROUND(IF(B11="PVM moketojas",E58*0.21,0),2) -> 0 | I59: =SUM(B59:G59) -> 9728.17
A60: Suma su PVM | B60: =SUM(B58,B59) -> 56052.79 | E60: =SUM(E58,E59) -> 0 | I60: =SUM(I58,I59) -> 56052.79
B63: UZSAKOVO ISRASOMA SASKAITA (RANGOVUI) | I63: UŽSAKOVO IŠRAŠOMA SĄSKAITA (RANGOVUI)
A64: Suma be PVM | B64: =IF(B47="FORMOJE YRA KLAIDŲ, PRAŠOME PATIKRINTI ĮVESTAS REIKŠMES",0,Support!B65) -> 7500 | E64: =IF(B47="FORMOJE YRA KLAIDŲ, PRAŠOME PATIKRINTI ĮVESTAS REIKŠMES",0,Support!B86) -> 0 | I64: =SUM(B64:G64) -> 7500
A65: PVM | B65: =IF(B47="FORMOJE YRA KLAIDŲ, PRAŠOME PATIKRINTI ĮVESTAS REIKŠMES",0,Support!C65) -> 1575 | E65: =IF(B47="FORMOJE YRA KLAIDŲ, PRAŠOME PATIKRINTI ĮVESTAS REIKŠMES",0,Support!C86) -> 0 | I65: =SUM(B65:G65) -> 1575
A66: Suma su PVM | B66: =SUM(B64:D65) -> 9075 | E66: =SUM(E64:G65) -> 0 | I66: =SUM(I64:K65) -> 9075
B69: FAKTORINGO SANAUDOS | I69: FAKTORINGO SĄNAUDOS
A70: Suma be PVM | B70: =IFERROR(ROUND((Support!D53-(((B31+B32)/SUM(B10:G10))*B10))*B39,2),0) -> 8824.62 | E70: =IF(E10=0,0,ROUND(((Support!D53+Support!D73)-B31-B32)*B39,2)-B70) -> 0 | I70: =SUM(B70:G70) -> 8824.62
A71: PVM | B71: =ROUND(B70*0.21,2) -> 1853.17 | E71: =IF(E10=0,0,ROUND((Support!D53+Support!D73-B31-B32)*B39*0.21,2)-B71) -> 0 | I71: =SUM(B71:G71) -> 1853.17
A72: Faktoringo sąnaudos | B72: =SUM(B70:D71) -> 10677.79 | E72: =SUM(E70:G71) -> 0 | I72: =SUM(B72:G72) -> 10677.79
B75: KONKURSINE KAINA | I75: KONKURSINĖ KAINA
A76: Suma be PVM | B76: =B58 -> 46324.62 | E76: =E58 -> 0 | I76: =SUM(B76:G76) -> 46324.62
A77: PVM | B77: =ROUND(IF(B11="Ne PVM moketojas - rangos darbai",0,B58*0.21),2) -> 9728.17 | E77: =ROUND(IF(B11="Ne PVM moketojas - rangos darbai",0,E58*0.21),2) -> 0 | I77: =SUM(B77:G77) -> 9728.17
A78: Suma su PVM | B78: =SUM(B76:D77) -> 56052.79 | E78: =SUM(E76:G77) -> 0 | I78: =SUM(B78:G78) -> 56052.79
B82: PINIGU JUDEJIMAS (NURODOMAS SUTARTYJE) | I82: PINIGŲ JUDĖJIMAS (NURODOMAS SUTARTYJE)
A83: Rangovo išrašoma sąskaita (sut. 2.1) | B83: =B60 -> 56052.79 | E83: =E60 -> 0 | I83: =SUM(B83:G83) -> 56052.79
A84: Kaupiamosiomis ir kitomis lėšomis apmokama dalis (sut. 2.2) | B84: =IFERROR((B31+B32)/SUM(B10:G10)*B10,0) -> 0 | E84: =SUM(B31:G32)-B84 -> 0 | I84: =SUM(B84:G84) -> 0
A85: Likusi sąskaitos dalis (be kaupiamųjų lėšų) (faktoringo atveju, faktoringuojama) (sut. 2.3) | B85: =B83-B84 -> 56052.79 | E85: =E83-E84 -> 0 | I85: 56052.79
A86: Faktoringo mokestis (sut. 4.1) | B86: =IF(B47="FORMOJE YRA KLAIDŲ, PRAŠOME PATIKRINTI ĮVESTAS REIKŠMES",0,B72) -> 10677.79 | E86: =IF(B47="FORMOJE YRA KLAIDŲ, PRAŠOME PATIKRINTI ĮVESTAS REIKŠMES",0,E72) -> 0 | I86: 10677.79
A87: Administratorius sulaiko dalį lėšų už atvirkštinį PVM (sut. 4.3) | B87: =IF(B12="TAIP",B59,0) -> 9728.17 | E87: =IF(E12="TAIP",E59,0) -> 0 | I87: 9728.17
A88: Administratorius sulaiko dalį lėšų už garantiją (sut. 4.2) | B88: =B43 -> 1852.98 | E88: =E43 -> 0 | I88: 1852.98
A89: Administratorius sulaiko dalį lėšų už administravimo mokesčius (sut. 4.4) | B89: =B66 -> 9075 | E89: =E66 -> 0 | I89: 9075
A90: Rangovo gaunama suma | B90: =IF(B47="FORMOJE YRA KLAIDŲ, PRAŠOME PATIKRINTI ĮVESTAS REIKŠMES",0,(B60-B88-B86-B87-B89)) -> 24718.85 | E90: =IF(B47="FORMOJE YRA KLAIDŲ, PRAŠOME PATIKRINTI ĮVESTAS REIKŠMES",0,(E60-E88-E86-E87-E89)) -> 0 | I90: 24718.85
A91: Rangovo gaunama suma (kaupiamosios ir kitos lėšos) | B91: =IF(B84>B90,B90,B84) -> 0 | E91: =IF(E84>E90,E90,E84) -> 0 | I91: 0
A92: Rangovo gaunama suma (be kaupiamųjų ir kitų lėšų (sut. 4.8)) | B92: =B90-B91 -> 24718.85 | E92: =E90-E91 -> 0 | I92: 24718.85
A97: PAPILDOMA INFORMACIJA UŽSAKOVUI:
A98: Gyventojams išrašomos sąskaitos faktūros | B98: Suma | C98: PVM | D98: Suma su PVM
A99: Už visą laikotarpį - KONKURSINĖ KAINA | B99: =SUM(B58:G58) -> 46324.62 | C99: =ROUND(IF(B11="Ne PVM moketojas - rangos darbai",0,SUM(B58:G58)*0.21),2) -> 9728.17 | D99: =SUM(B99,C99) -> 56052.79
A100: Kaupiamųjų ir kitų lėšų panaudojimas | B100: =ROUND(IF(C99>0,((B31+B32)/1.21),B31+B32),2) -> 0 | C100: =D100-B100 -> 0 | D100: =B31+B32 -> 0
A101: Likusi mokėtina suma (Konkursinė kaina minus kaupiamosios ir kitos iš anksto panaudotos lėšos) | B101: =B99-B100 -> 46324.62 | C101: =C99-C100 -> 9728.17 | D101: =D99-D100 -> 56052.79
A102: Skaičiuojama įvertinus kaupiamąsias lėšas:
A103: Už vieną mėnesį (namui) | B103: =B101/VLOOKUP($B$35,Support!$A$18:'Support'!$J$25,10,0) -> 965.09625 | C103: =C101/VLOOKUP($B$35,Support!$A$18:'Support'!$J$25,10,0) -> 202.6702083 | D103: =D101/VLOOKUP($B$35,Support!$A$18:'Support'!$J$25,10,0) -> 1167.766458
A104: Suma vienam kv. m. už visą laikotarpį | B104: =B101/$B$29 -> 19.9427521 | C104: =C101/$B$29 -> 4.187977855 | D104: =D101/$B$29 -> 24.13072996
A105: Suma vienam kv. m. per vieną mėnesį | B105: =B103/$B$29 -> 0.4154740021 | C105: =C103/$B$29 -> 0.08724953865 | D105: =D103/$B$29 -> 0.5027235407
A106: Suma vidutinio dydžio patalpai (butui) už visą laikotarpį | B106: =IFERROR(B101/$B$30,0) -> 1323.560571 | C106: =IFERROR(C101/$B$30,0) -> 277.9477143 | D106: =IFERROR(D101/$B$30,0) -> 1601.508286
A107: Suma vidutinio dydžio patalpai (butui) per vieną mėnesį | B107: =IFERROR(B103/$B$30,0) -> 27.57417857 | C107: =IFERROR(C103/$B$30,0) -> 5.790577381 | D107: =IFERROR(D103/$B$30,0) -> 33.36475595
A111: KONTROLĖ (UŽDARBIS) | B111: KONTROLĖ (UŽDARBIS) | I111: KONTROLĖ (UŽDARBIS)
A112: Rangovas | B112: =SUM(B113:B115) -> 26571.83 | I112: =B112 -> 26571.83
A113: Pardavimo pajamos | B113: =SUM(B58:G58) -> 46324.62 | I113: =B113 -> 46324.62
A114: Komisinių sąnaudos | B114: =-IF(OR(B11="PVM mokėtojas",B11="PVM mokėtojas - PVM neapmokestinama veikla, ne rangos darbai")=TRUE,SUM(B64:G64),SUM(B64:G64)+SUM(B65:G65)) -> -9075 | I114: -9075
A115: Faktoringo sąnaudos | B115: =-IF(B47="FORMOJE YRA KLAIDŲ, PRAŠOME PATIKRINTI ĮVESTAS REIKŠMES",0,IF(OR(B11="PVM mokėtojas",B11="PVM mokėtojas - PVM neapmokestinama veikla, ne rangos darbai")=TRUE,SUM(B70:G70),SUM(B72:G72))) -> -10677.79 | I115: -10677.79
A117: Administratorius | B117: =SUM(B64:G64) -> 7500 | I117: =B117 -> 7500
A118: Finansuotojas | B118: =IF(B47="FORMOJE YRA KLAIDŲ, PRAŠOME PATIKRINTI ĮVESTAS REIKŠMES",0,IF(OR(B11="PVM mokėtojas",B11="PVM mokėtojas - PVM neapmokestinama veikla, ne rangos darbai")=TRUE,SUM(B70:G70),SUM(B72:G72))) -> 10677.79 | I118: 10677.79
A119: VMI | B119: =IF(OR(B11="PVM mokėtojas",B11="PVM mokėtojas - PVM neapmokestinama veikla, ne rangos darbai")=TRUE,C99,C99+B65+E65) -> 11303.17 | I119: 11303.17
A121: Iš viso | B121: =SUM(B112,B117,B118,B119) -> 56052.79 | I121: =B121 -> 56052.79
A122: Kontrolė | B122: =D99-B121 -> 0 | I122: 0
B131: Darbas #1 | E131: Darbas #2
B132: PortalPRO | I132: PortalPRO
A133: Rangovo gaunamos pajamos, EUR be PVM | B133: 2000 | I133: =SUM(B133:G133) -> 2000
A134: Darbų vykdytojo PVM mokėtojo statusas | B134: PVM mokėtojas | I134: =B134 -> PVM mokėtojas
A136: Administratoriaus pavadinimas | B136: UAB „Mano Būstas Alytus“ | I136: =B136 -> UAB „Mano Būstas Alytus“
A137: Iniciatorius | I137: =B137 -> 0
A139: Namo valdymo forma | B139: Bendrija | I139: =B139 -> Bendrija
A140: Namo adresas | I140: =B140 -> 0
A141: Darbо tipas | I141: =B141 -> 0
A142: Naudingas namo/laiptinės plotas, kv. m. | B142: 500 | I142: 500
A143: Namo/laiptinės butų skaičius, vnt. | I143: 0
A144: Panaudojama kaupiamųjų lėšų suma | I144: 0
A145: Panaudojamos kitos iš anksto sumokamos sumos, Eur | I145: 0
A146: Objekto nemokumas, % | B146: 0 | I146: =B146 -> 0
A147: Minimali darbų kaina vienam kv.m. taikant išsimokėjimą | B147: 1.5 | I147: =B147 -> 1.5
A148: Ar darbams suteikiamas išsimokėjimo terminas? | B148: =IFERROR(IF(AND(B156>2000,(B156-B144-B145)/B142>=1.5)=TRUE,"TAIP","NE"),"NE") -> TAIP | I148: =B148 -> TAIP
A149: Išsimokėjimo terminas (paskaičiuojamas automatiškai) | B149: =IF(B148="NE","Be išsimokėjimo termino","6 mėn.") -> 6 mėn. | I149: =B149 -> 6 mėn. | J149: Be išsimokėjimo termino | K149: Be išsimokėjimo termino
A153: Sąskaita faktūra | B153: PortalPRO sąskaita | I153: PortalPRO sąskaita
A154: Suma be PVM | B154: =B133 -> 2000 | E154: =E133 -> 0 | I154: =SUM(B154:G154) -> 2000
A155: PVM | B155: =ROUND(IF(B134="PVM mokėtojas",B154*0.21,0),2) -> 420 | E155: =ROUND(IF(B134="PVM mokėtojas",E154*0.21,0),2) -> 0 | I155: =SUM(B155:G155) -> 420
A156: Suma su PVM | B156: =SUM(B154:D155) -> 2420 | E156: =SUM(E154:G155) -> 0 | I156: 2420
A160: PAPILDOMA INFORMACIJA ADMINISTRATORIUI:
A161: Gyventojams išrašomos sąskaitos faktūros | B161: Suma | C161: PVM | D161: Suma su PVM
A162: Už visą laikotarpį - KONKURSINĖ KAINA | B162: =SUM(B154:G154) -> 2000 | C162: =SUM(B155:G155) -> 420 | D162: =SUM(B162:C162) -> 2420
A163: Kaupiamųjų ir kitų lėšų panaudojimas | B163: =ROUND(IF(B134="PVM mokėtojas",SUM(B144:G145)/1.21,SUM(B144:G145)),2) -> 0 | C163: =D163-B163 -> 0 | D163: =SUM(B144:G145) -> 0
A164: Už visą laikotarpį - KONKURSINĖ KAINA (panaudojus kaupiamąsias lėšas) | B164: =B162-B163 -> 2000 | C164: =C162-C163 -> 420 | D164: =SUM(B164:C164) -> 2420
A165: Skaičiuojama įvertinus kaupiamąsias lėšas:
A166: Už vieną mėnesį (namui) | B166: =IF(B148="TAIP",B164/6,B164) -> 333.3333333 | C166: =IF(B148="TAIP",C164/6,C164) -> 70 | D166: =SUM(B166:C166) -> 403.3333333
A167: Suma vienam kv. m. už visą laikotarpį | B167: =IFERROR(B164/$B$142,0) -> 4 | C167: =IFERROR(C164/$B$142,0) -> 0.84 | D167: 4.84
A168: Suma vienam kv. m. per vieną mėnesį | B168: =IFERROR(IF(B148="TAIP",B164/B142/6,B164/B142),0) -> 0.6666666667 | C168: =IFERROR(IF(B148="TAIP",C164/B142/6,C164/B142),0) -> 0.14 | D168: 0.8066666667
A169: Suma vidutinio dydžio patalpai (butui) už visą laikotarpį | B169: =IFERROR(B164/B143,0) -> 0 | C169: =IFERROR(C164/B143,0) -> 0 | D169: 0
A170: Suma vidutinio dydžio patalpai (butui) per vieną mėnesį | B170: =IFERROR(IF(B148="TAIP",B164/B143/6,B164/B143),0) -> 0 | C170: =IFERROR(IF(B148="TAIP",C164/B143/6,C164/B143),0) -> 0 | D170: 0

Sheet Issimokejimo grafikas
C1: Pildomi laukai
C2: Informacija apie paskolą
C3: Mėnesiai | D3: =IF(Paraiska!B13="PortalPRO",IF(Paraiska!B148="TAIP",6,1),VLOOKUP(Paraiska!B35,Support!$A$18:$J$25,10,0)) -> 48
C4: Suma | D4: =IF(Paraiska!B13="PortalPRO",Paraiska!D164,Paraiska!I85) -> 56052.79
C5: Data | D5: 2021-04-25
D6: =EOMONTH(C9,D3-1) -> 2025-03-31
B7: Mokėjimų grafikas
B8: Mėnesis | C8: Kredito grąžinimo ir palūkanų mokėjimo data | D8: Kredito likutis periodo pradžioje | E8: Mokėtina suma | F8: Kredito likutis periodo pabaigoje
B9: 1 | C9: =IF($B$9>$D$3,"",EOMONTH(D5,0)) -> 2021-04-30 | D9: =D4 -> 56052.79 | E9: =IF(C9=$D$6,D9,ROUND(IF($D$4/$D$3>D9,D9,$D$4/$D$3),2)) -> 1167.77 | F9: =D9-E9 -> 54885.02
B10: 2 | C10: =IF(B10>$D$3,"",EOMONTH(C9,1)) -> 2021-05-31 | D10: =F9 -> 54885.02 | E10: =IF(C10=$D$6,D10,ROUND(IF($D$4/$D$3>D10,D10,$D$4/$D$3),2)) -> 1167.77 | F10: =D10-E10 -> 53717.25
B11: 3 | C11: 2021-06-30 | D11: =F10 -> 53717.25 | E11: 1167.77 | F11: 52549.48
B12: 4 | C12: 2021-07-31 | D12: 52549.48 | E12: 1167.77 | F12: 51381.71
B13: 5 | C13: 2021-08-31 | D13: 51381.71 | E13: 1167.77 | F13: 50213.94
B14: 6 | C14: 2021-09-30 | D14: 50213.94 | E14: 1167.77 | F14: 49046.17
B15: 7 | C15: 2021-10-31 | D15: 49046.17 | E15: 1167.77 | F15: 47878.4
B16: 8 | C16: 2021-11-30 | D16: 47878.4 | E16: 1167.77 | F16: 46710.63
B17: 9 | C17: 2021-12-31 | D17: 46710.63 | E17: 1167.77 | F17: 45542.86
B18: 10 | C18: 2022-01-31 | D18: 45542.86 | E18: 1167.77 | F18: 44375.09
B19: 11 | C19: 2022-02-28 | D19: 44375.09 | E19: 1167.77 | F19: 43207.32
B20: 12 | C20: 2022-03-31 | D20: 43207.32 | E20: 1167.77 | F20: 42039.55
B21: 13 | C21: 2022-04-30 | D21: 42039.55 | E21: 1167.77 | F21: 40871.78
B22: 14 | C22: 2022-05-31 | D22: 40871.78 | E22: 1167.77 | F22: 39704.01
B23: 15 | C23: 2022-06-30 | D23: 39704.01 | E23: 1167.77 | F23: 38536.24
B24: 16 | C24: 2022-07-31 | D24: 38536.24 | E24: 1167.77 | F24: 37368.47
B25: 17 | C25: 2022-08-31 | D25: 37368.47 | E25: 1167.77 | F25: 36200.7
B26: 18 | C26: 2022-09-30 | D26: 36200.7 | E26: 1167.77 | F26: 35032.93
B27: 19 | C27: 2022-10-31 | D27: 35032.93 | E27: 1167.77 | F27: 33865.16
B28: 20 | C28: 2022-11-30 | D28: 33865.16 | E28: 1167.77 | F28: 32697.39
B29: 21 | C29: 2022-12-31 | D29: 32697.39 | E29: 1167.77 | F29: 31529.62
B30: 22 | C30: 2023-01-31 | D30: 31529.62 | E30: 1167.77 | F30: 30361.85
B31: 23 | C31: 2023-02-28 | D31: 30361.85 | E31: 1167.77 | F31: 29194.08
B32: 24 | C32: 2023-03-31 | D32: 29194.08 | E32: 1167.77 | F32: 28026.31
B33: 25 | C33: 2023-04-30 | D33: 28026.31 | E33: 1167.77 | F33: 26858.54
B34: 26 | C34: 2023-05-31 | D34: 26858.54 | E34: 1167.77 | F34: 25690.77
B35: 27 | C35: 2023-06-30 | D35: 25690.77 | E35: 1167.77 | F35: 24523
B36: 28 | C36: 2023-07-31 | D36: 24523 | E36: 1167.77 | F36: 23355.23
B37: 29 | C37: 2023-08-31 | D37: 23355.23 | E37: 1167.77 | F37: 22187.46
B38: 30 | C38: 2023-09-30 | D38: 22187.46 | E38: 1167.77 | F38: 21019.69
B39: 31 | C39: 2023-10-31 | D39: 21019.69 | E39: 1167.77 | F39: 19851.92
B40: 32 | C40: 2023-11-30 | D40: 19851.92 | E40: 1167.77 | F40: 18684.15
B41: 33 | C41: 2023-12-31 | D41: 18684.15 | E41: 1167.77 | F41: 17516.38
B42: 34 | C42: 2024-01-31 | D42: 17516.38 | E42: 1167.77 | F42: 16348.61
B43: 35 | C43: 2024-02-29 | D43: 16348.61 | E43: 1167.77 | F43: 15180.84
B44: 36 | C44: 2024-03-31 | D44: 15180.84 | E44: 1167.77 | F44: 14013.07
B45: 37 | C45: 2024-04-30 | D45: 14013.07 | E45: 1167.77 | F45: 12845.3
B46: 38 | C46: 2024-05-31 | D46: 12845.3 | E46: 1167.77 | F46: 11677.53
B47: 39 | C47: 2024-06-30 | D47: 11677.53 | E47: 1167.77 | F47: 10509.76
B48: 40 | C48: 2024-07-31 | D48: 10509.76 | E48: 1167.77 | F48: 9341.99
B49: 41 | C49: 2024-08-31 | D49: 9341.99 | E49: 1167.77 | F49: 8174.22
B50: 42 | C50: 2024-09-30 | D50: 8174.22 | E50: 1167.77 | F50: 7006.45
B51: 43 | C51: 2024-10-31 | D51: 7006.45 | E51: 1167.77 | F51: 5838.68
B52: 44 | C52: 2024-11-30 | D52: 5838.68 | E52: 1167.77 | F52: 4670.91
B53: 45 | C53: 2024-12-31 | D53: 4670.91 | E53: 1167.77 | F53: 3503.14
B54: 46 | C54: 2025-01-31 | D54: 3503.14 | E54: 1167.77 | F54: 2335.37
B55: 47 | C55: 2025-02-28 | D55: 2335.37 | E55: 1167.77 | F55: 1167.6
B56: 48 | C56: 2025-03-31 | D56: 1167.6 | E56: 1167.6 | F56: 0
D57: Bendra mokėtina suma | E57: =SUM(E9:E56) -> 56052.79

Sheet Darbu Sarasas
A1: Grupė | B1: Buhalterinė sąskaita NAV | C1: DK sąskaita | D1: Darbų pavadinimai | E1: Atvirkštinis PVM
A2: Elektra | B2: Elektros instaliacijos remontas | C2: 501089 | D2: Elektros skydinės renovacija, atnaujinimas | E2: Taikomas APVM
A3: Elektra | B3: Elektros instaliacijos remontas | C3: 501089 | D3: Laiptinės apšvietimo atnaujinimas( šviestuvai su davikliais) | E3: Taikomas APVM
A4: Elektra | B4: Elektros instaliacijos remontas | C4: 501089 | D4: Laiptinės apskaitos skydelių atnaujinimas, remontas | E4: Taikomas APVM
A5: Elektra | B5: Elektros instaliacijos remontas | C5: 501089 | D5: Magistralinių elektros instaliacijos laidų keitimas | E5: Taikomas APVM
A6: Elektra | B6: Elektros instaliacijos remontas | C6: 501089 | D6: Rūsio elektros instaliacijos, apšvietimo atnaujinimas, remontas | E6: Taikomas APVM
A7: Elektra | B7: Elektros instaliacijos remontas | C7: 501089 | D7: Telefonspynės įrengimas | E7: Taikomas APVM
A8: Elektra | B8: Elektros instaliacijos remontas | C8: 501089 | D8: Kelio užtvaro, vartų automatikos remontas, įrengimas | E8: Taikomas APVM
A9: Stogai | B9: Stogo remontas | C9: 501081 | D9: Prylydomos stogo dangos keitimas, apšiltinimas | E9: Taikomas APVM
A10: Stogai | B10: Stogo remontas | C10: 501081 | D10: Stogo dangos ir konstrukcijų kapitalinis remontas | E10: Taikomas APVM
A11: Stogai | B11: Stogo remontas | C11: 501081 | D11: Šlaitinio stogo dangos keitimas ( šerpinės, šiferio, plieninio) | E11: Taikomas APVM
A12: Stogai | B12: Stogo remontas | C12: 501081 | D12: Lietaus nuvedimo sitemos keitimas( latakai, lietvamzdžiai) | E12: Taikomas APVM
A13: Kaminai, vėdinimo šachtos | B13: Stogo remontas | C13: 501081 | D13: Kaminų, vėdinimo šachtų remontas | E13: Taikomas APVM
A14: Stogai | B14: Stogo remontas | C14: 501081 | D14: Projektavimo darbai (stogai) | E14: Netaikomas APVM
A15: Išorės sienos ( fasadai) | B15: Staliaus ir bendrastatybiniai | C15: 501088 | D15: Išorės sienų (fasado) apdailos remonto darbai | E15: Taikomas APVM
A16: Išorės sienos ( fasadai) | B16: Staliaus ir bendrastatybiniai | C16: 501088 | D16: Išorės sienų (fasado) šiltinimo darbai | E16: Taikomas APVM
A17: Išorės sienos ( fasadai) | B17: Staliaus ir bendrastatybiniai | C17: 501088 | D17: Fasado mūro sienų atstatymas | E17: Taikomas APVM
A18: Išorės sienos ( fasadai) | B18: Staliaus ir bendrastatybiniai | C18: 501088 | D18: Balkonų, terasų grindų ir konstrukcijų, remontas | E18: Taikomas APVM
A19: Išorės sienos ( fasadai) | B19: Staliaus ir bendrastatybiniai | C19: 501088 | D19: Projektavimo darbai ( išorės sienos (fasadai), balkonai, perdangos) | E19: Netaikomas APVM
A20: Išorės sienos ( fasadai) | B20: Staliaus ir bendrastatybiniai | C20: 501088 | D20: Pastato konstrukcijų būklės vertinimas | E20: Netaikomas APVM
A21: Išorės sienos ( fasadai) | B21: Siūlių remontas | C21: 501083 | D21: Išorės pastatų sienų siūlių hermetizavimas | E21: Taikomas APVM
A22: Išorės sienos ( fasadai) | B22: Siūlių remontas | C22: 501083 | D22: Tarpblokinių siūlių hermetizavimas | E22: Taikomas APVM
A23: Įėjimo aikštelės, stogeliai | B23: Staliaus ir bendrastatybiniai | C23: 501088 | D23: Laiptinės įėjimo aikštelės, laiptų remontas | E23: Taikomas APVM
A24: Įėjimo aikštelės, stogeliai | B24: Staliaus ir bendrastatybiniai | C24: 501088 | D24: Įėjimo į laiptinė stogelio remontas | E24: Taikomas APVM
A25: Nuogrinda | B25: Staliaus ir bendrastatybiniai | C25: 501088 | D25: Pastato nuogrindos įrengimas, remontas | E25: Taikomas APVM
A26: Teritorija | B26: Staliaus ir bendrastatybiniai | C26: 501088 | D26: Kelio užtvaro montavimas ( bendrastatybinė dalys) | E26: Taikomas APVM
A27: Pastatų vidaus paviršiai | B27: Laiptinių priežiūra ir remontas | C27: 501085 | D27: Pastatų vidaus paviršių apdailos remontas ( dažymas, tinkavimas) | E27: Taikomas APVM
A28: Pastatų vidaus paviršiai | B28: Laiptinių priežiūra ir remontas | C28: 501085 | D28: Laipinės dekoratyvinių tinko apdaila | E28: Taikomas APVM
A29: Signalizacijos ( silpnos srovės) apsauginė ir gaisrinė | B29: Pultinė apsauga | C29: 5010896 | D29: Apsauginės, gaisrinės signalizacijos ir silpnų srovių sistemų instaliacijos, centralės keitimas, remontas | E29: Taikomas APVM
A30: Apsaugos sistemos | B30: Apsaugos sistemų montavimas | C30: 50108053 | D30: Apsaugos sistemų (pultinės ir vaizdo stebėjimo kamerų) įrengimas ir montavimas | E30: Taikomas APVM
A31: Dujotiekis ( katilinės) | B31: Dujas deginančių įr. papild. | C31: 5010898 | D31: Dujotiekio sistemos vamzdynų ir įrangos remontas | E31: Taikomas APVM
A32: Langai ir durys | B32: Langų/durų keitimas | C32: 501084 | D32: Įėjimo laiptinių/rūsio durų keitimas | E32: Taikomas APVM
A33: Langai ir durys | B33: Langų/durų keitimas | C33: 501084 | D33: Laiptinės langų keitimas | E33: Taikomas APVM
A34: Langai ir durys | B34: Langų/durų keitimas | C34: 501084 | D34: Plienininių laiptinės durų su telefonspynė montavimas | E34: Taikomas APVM
A35: Liftai | B35: Liftų remontas | C35: 5010801 | D35: Liftų įrangos ir pritaisų keitimas, remontas | E35: Netaikomas APVM
A36: Liftai | B36: Liftų remontas | C36: 5010801 | D36: Liftų montavimas, modernizavimas (nauji liftai) | E36: Taikomas APVM
A37: Priešgaisrinis vandentiekis | B37: Priešgaisrinių sistemų papild. | C37: 5010897 | D37: Priešgaisrinio vandentiekio sistemos vamzdyno ir čiaupų remontas | E37: Taikomas APVM
A38: Priešgaisrinis vandentiekis | B38: Priešgaisrinių sistemų papild. | C38: 5010897 | D38: Gaisrinių žarnų ir čiaupų patikra, perkantavimas ir bandymas | E38: Taikomas APVM
A39: Šaltas vandens ir nuotekų tinklai | B39: Š.v. tiekimo ir kanalizavimo sistemų remontas | C39: 501087 | D39: Šaltas vandens ir nuotekos tinklų vamzdynų remontas | E39: Taikomas APVM
A40: Šaltas vandens ir nuotekų tinklai | B40: Š.v. tiekimo ir kanalizavimo sistemų remontas | C40: 501087 | D40: Projektavimo darbai ( šalto vandens, buitinių ir lietas nuotekų sistemos) | E40: Netaikomas APVM
A41: Šalto vandens sistemos | B41: Š.v. tiekimo ir kanalizavimo sistemų remontas | C41: 501087 | D41: Šalto vandens sistemos vamzdynų keitimas( magistralinių, stovų,skirtomojo) | E41: Taikomas APVM
A42: Šalto vandens sistemos | B42: Š.v. tiekimo ir kanalizavimo sistemų remontas | C42: 501087 | D42: Vandens valymo įrangos įrengimas su filtrais | E42: Taikomas APVM
A43: Buitinės ir lietaus nuotekos | B43: Š.v. tiekimo ir kanalizavimo sistemų remontas | C43: 501087 | D43: Kanalizacija ir nuotekos tinklų vamzdynų remontas | E43: Taikomas APVM
A44: Šildymo ir karšto vandens sistemos | B44: Šildymo ir kv. sistemos remontas | C44: 501086 | D44: Šildymo ir karšto vandens sistemų stovų vamzdynų keitimas | E44: Taikomas APVM
A45: Šildymo ir karšto vandens sistemos | B45: Šildymo ir kv. sistemos remontas | C45: 501086 | D45: Karšto, cirkuliacinio ir šildymo magistralinių vamzdžių keitimo darbai | E45: Taikomas APVM
A46: Šildymo ir karšto vandens sistemos | B46: Šildymo ir kv. sistemos remontas | C46: 501086 | D46: Slėgio perkričio reguliatoriaus ir privirinamos sklendės keitimo darbai | E46: Taikomas APVM
A47: Šildymo ir karšto vandens sistemos | B47: Šildymo ir kv. sistemos remontas | C47: 501086 | D47: Šildymo sistemos skirstomojo vamzdyno remontas | E47: Taikomas APVM
A48: Šildymo ir karšto vandens sistemos | B48: Šildymo ir kv. sistemos remontas | C48: 501086 | D48: Šilumos punkto įrangos keitimas, remontas ( valdiklių, dvieigių vožtuvų, pavarų, siublių, šilumokaičių) | E48: Taikomas APVM
A49: Šildymo ir karšto vandens sistemos | B49: Šildymo ir kv. sistemos remontas | C49: 501086 | D49: Projektavimo darbai ( Šildymo ir karšto vandens sistemos, šilumos punktai) | E49: Netaikomas APVM
A50: Vėdinimo ir oro kondicionavimo sistemos | B50: Vėdinimo ir oro kondicionavimo | C50: 5010891 | D50: Vėdinimo ir oro kondicionavimo sistemų remontas | E50: Taikomas APVM
A51: Vėdinimo ir oro kondicionavimo sistemos | B51: Vėdinimo ir oro kondicionavimo | C51: 5010891 | D51: Kondicionierių montavimas | E51: Taikomas APVM
A52: Vėdinimo ir oro kondicionavimo sistemos | B52: Vėdinimo ir oro kondicionavimo | C52: 5010891 | D52: Kondicionavimo sistemų papildymos šaldymo skysščių | E52: Netaikomas APVM
A53: Pastatų renovacijos darbai | B53: Pastatų renovacija | C53: 5010893 | D53: Išorės pastato sienų, stogų, balkonų, inžinierinių sitemų renovacija ir atnaujinimas | E53: Taikomas APVM
